[Event "Titled Tuesday Blitz August 1 Late 2023"]
[White "Rasulov, Vugar"]
[Black "Sliwicki, Damian"]
[WhiteFideId "13402390"]
[BlackFideId "1127128"]
[WhiteElo "2831"]
[BlackElo "2403"]
[Result "1-0"]
[Round "2"]
[TimeControl "180+1"]
[Date "2023.08.01"]
[WhiteClock "0:01:48"]
[BlackClock "0:01:15"]
[Board "104"]

1. e3 {[%clk 0:03:00]}  c5 {[%clk 0:02:44]} 2. Ne2 {[%clk 0:03:01]}  g6 {[%clk 0:02:37]} 3. d4 {[%clk 0:03:01]}  cxd4 {[%clk 0:02:38]} 4. exd4 {[%clk 0:03:00]}  Bg7 {[%clk 0:02:37]} 5. c3 {[%clk 0:03:00]}  Nf6 {[%clk 0:02:35]} 6. Ng3 {[%clk 0:02:59]}  O-O {[%clk 0:02:35]} 7. Bd3 {[%clk 0:02:59]}  b6 {[%clk 0:02:34]} 8. O-O {[%clk 0:02:56]}  Bb7 {[%clk 0:02:33]} 9. Re1 {[%clk 0:02:57]}  d6 {[%clk 0:02:05]} 10. Nd2 {[%clk 0:02:55]}  Nbd7 {[%clk 0:02:02]} 11. Nf3 {[%clk 0:02:55]}  Re8 {[%clk 0:01:59]} 12. Bg5 {[%clk 0:02:44]}  Qc7 {[%clk 0:01:55]} 13. a4 {[%clk 0:02:32]}  e5 {[%clk 0:01:53]} 14. dxe5 {[%clk 0:02:31]}  dxe5 {[%clk 0:01:48]} 15. Bb5 {[%clk 0:02:29]}  e4 {[%clk 0:01:37]} 16. Bxf6 {[%clk 0:02:13]}  Nxf6 {[%clk 0:01:34]} 17. Bxe8 {[%clk 0:02:13]}  exf3 {[%clk 0:01:29]} 18. Bb5 {[%clk 0:02:13]}  fxg2 {[%clk 0:01:29]} 19. Qe2 {[%clk 0:02:02]}  Nh5 {[%clk 0:01:22]} 20. Nxh5 {[%clk 0:01:55]}  gxh5 {[%clk 0:01:22]} 21. Qe7 {[%clk 0:01:50]}  Qf4 {[%clk 0:01:15]} 22. Qxb7 {[%clk 0:01:48]} 1-0


[Site "https://www.chess.com"]

[Event "Titled Tuesday Blitz August 1 Late 2023"]
[White "Zierk, Steven"]
[Black "Stachanczyk, Jacek"]
[WhiteFideId "2034255"]
[BlackFideId "1116657"]
[WhiteElo "2827"]
[BlackElo "2402"]
[Result "1-0"]
[Round "2"]
[TimeControl "180+1"]
[Date "2023.08.01"]
[WhiteClock "0:01:38"]
[BlackClock "0:01:15"]
[Board "105"]

1. e4 {[%clk 0:03:00]}  c5 {[%clk 0:02:56]} 2. Nf3 {[%clk 0:03:00]}  d6 {[%clk 0:02:50]} 3. d4 {[%clk 0:03:00]}  cxd4 {[%clk 0:02:50]} 4. Nxd4 {[%clk 0:03:00]}  Nf6 {[%clk 0:02:51]} 5. Nc3 {[%clk 0:03:00]}  g6 {[%clk 0:02:51]} 6. Be3 {[%clk 0:02:59]}  Bg7 {[%clk 0:02:52]} 7. f3 {[%clk 0:02:58]}  O-O {[%clk 0:02:52]} 8. Qd2 {[%clk 0:02:59]}  Nc6 {[%clk 0:02:53]} 9. O-O-O {[%clk 0:02:58]}  d5 {[%clk 0:02:52]} 10. Qe1 {[%clk 0:02:55]}  e5 {[%clk 0:02:46]} 11. Nxc6 {[%clk 0:02:55]}  bxc6 {[%clk 0:02:47]} 12. exd5 {[%clk 0:02:54]}  Nxd5 {[%clk 0:02:47]} 13. Bc4 {[%clk 0:02:53]}  Be6 {[%clk 0:02:47]} 14. Bc5 {[%clk 0:02:53]}  Qg5+ {[%clk 0:02:36]} 15. Kb1 {[%clk 0:02:46]}  Nxc3+ {[%clk 0:02:29]} 16. Qxc3 {[%clk 0:02:46]}  e4 {[%clk 0:02:29]} 17. Bd4 {[%clk 0:02:30]}  Bxd4 {[%clk 0:02:22]} 18. Qxd4 {[%clk 0:02:31]}  Bxc4 {[%clk 0:02:21]} 19. Qxc4 {[%clk 0:02:28]}  Qxg2 {[%clk 0:02:13]} 20. fxe4 {[%clk 0:02:17]}  Rad8 {[%clk 0:02:10]} 21. Qxc6 {[%clk 0:02:07]}  Qxh2 {[%clk 0:02:00]} 22. Qc5 {[%clk 0:01:53]}  Rxd1+ {[%clk 0:01:52]} 23. Rxd1 {[%clk 0:01:54]}  Qe2 {[%clk 0:01:48]} 24. Qd5 {[%clk 0:01:50]}  Re8 {[%clk 0:01:42]} 25. c4 {[%clk 0:01:49]}  Rxe4 {[%clk 0:01:35]} 26. Rc1 {[%clk 0:01:42]}  Rf4 {[%clk 0:01:22]} 27. c5 {[%clk 0:01:40]}  Rf2 {[%clk 0:01:22]} 28. Qd8+ {[%clk 0:01:39]}  Kg7 {[%clk 0:01:22]} 29. Qd4+ {[%clk 0:01:39]}  Kg8 {[%clk 0:01:15]} 30. c6 {[%clk 0:01:39]}  Qd2 {[%clk 0:01:15]} 31. Qxd2 {[%clk 0:01:38]}  Rxd2 {[%clk 0:01:15]} 32. c7 {[%clk 0:01:38]} 1-0


[Site "https://www.chess.com"]

[Event "Titled Tuesday Blitz August 1 Late 2023"]
[White "Rubio Tent, Francisco"]
[Black "Nazari, Arad"]
[WhiteFideId "2238233"]
[BlackFideId "12577324"]
[WhiteElo "2402"]
[BlackElo "2767"]
[Result "0-1"]
[Round "2"]
[TimeControl "180+1"]
[Date "2023.08.01"]
[WhiteClock "0:00:48"]
[BlackClock "0:01:53"]
[Board "106"]

1. e4 {[%clk 0:02:40]}  e6 {[%clk 0:02:56]} 2. d4 {[%clk 0:02:36]}  d5 {[%clk 0:02:56]} 3. Bd3 {[%clk 0:02:35]}  Nf6 {[%clk 0:02:55]} 4. e5 {[%clk 0:02:34]}  Nfd7 {[%clk 0:02:56]} 5. f4 {[%clk 0:02:34]}  c5 {[%clk 0:02:56]} 6. c3 {[%clk 0:02:35]}  Nc6 {[%clk 0:02:56]} 7. Nf3 {[%clk 0:02:35]}  Qb6 {[%clk 0:02:55]} 8. Bc2 {[%clk 0:02:35]}  Be7 {[%clk 0:02:51]} 9. O-O {[%clk 0:02:33]}  f5 {[%clk 0:02:43]} 10. Nbd2 {[%clk 0:02:28]}  cxd4 {[%clk 0:02:42]} 11. Kh1 {[%clk 0:02:22]}  dxc3 {[%clk 0:02:35]} 12. bxc3 {[%clk 0:02:22]}  O-O {[%clk 0:02:33]} 13. Nb3 {[%clk 0:02:17]}  Nc5 {[%clk 0:02:32]} 14. Rb1 {[%clk 0:02:13]}  Qc7 {[%clk 0:02:30]} 15. Be3 {[%clk 0:02:11]}  Ne4 {[%clk 0:02:29]} 16. Bxe4 {[%clk 0:02:05]}  dxe4 {[%clk 0:02:29]} 17. Nfd4 {[%clk 0:02:05]}  Rd8 {[%clk 0:02:27]} 18. Qe1 {[%clk 0:01:57]}  b6 {[%clk 0:02:25]} 19. Nb5 {[%clk 0:01:54]}  Qb8 {[%clk 0:02:16]} 20. Rd1 {[%clk 0:01:44]}  Ba6 {[%clk 0:02:15]} 21. a4 {[%clk 0:01:37]}  Rxd1 {[%clk 0:02:08]} 22. Qxd1 {[%clk 0:01:36]}  Qd8 {[%clk 0:02:08]} 23. Qh5 {[%clk 0:01:25]}  Qd3 {[%clk 0:01:56]} 24. Rd1 {[%clk 0:00:48]}  Qxe3 {[%clk 0:01:53]} 0-1


[Site "https://www.chess.com"]

[Event "Titled Tuesday Blitz August 1 Late 2023"]
[White "Eggleston, Thomas A"]
[Black "Papasimakopoulos, Alexandros"]
[WhiteFideId "412139"]
[BlackFideId "4244125"]
[WhiteElo "2379"]
[BlackElo "2695"]
[Result "0-1"]
[Round "2"]
[TimeControl "180+1"]
[Date "2023.08.01"]
[WhiteClock "0:00:00"]
[BlackClock "0:01:16"]
[Board "110"]

1. e4 {[%clk 0:03:00]}  e6 {[%clk 0:03:00]} 2. d4 {[%clk 0:03:00]}  d5 {[%clk 0:03:00]} 3. exd5 {[%clk 0:02:58]}  exd5 {[%clk 0:03:01]} 4. c4 {[%clk 0:02:58]}  Nf6 {[%clk 0:03:01]} 5. Nc3 {[%clk 0:02:58]}  Bb4 {[%clk 0:03:01]} 6. Nf3 {[%clk 0:02:58]}  O-O {[%clk 0:03:02]} 7. Bd3 {[%clk 0:02:58]}  dxc4 {[%clk 0:03:01]} 8. Bxc4 {[%clk 0:02:58]}  Bg4 {[%clk 0:03:02]} 9. Be3 {[%clk 0:02:58]}  Nc6 {[%clk 0:03:02]} 10. O-O {[%clk 0:02:57]}  Rb8 {[%clk 0:03:02]} 11. Be2 {[%clk 0:02:51]}  Re8 {[%clk 0:02:58]} 12. h3 {[%clk 0:02:51]}  Bh5 {[%clk 0:02:57]} 13. a3 {[%clk 0:02:48]}  Ba5 {[%clk 0:02:57]} 14. Qa4 {[%clk 0:02:28]}  Bb6 {[%clk 0:02:54]} 15. Rad1 {[%clk 0:02:27]}  Nd5 {[%clk 0:02:53]} 16. Nxd5 {[%clk 0:02:20]}  Qxd5 {[%clk 0:02:54]} 17. g4 {[%clk 0:02:01]}  Bg6 {[%clk 0:02:54]} 18. Nh4 {[%clk 0:02:01]}  Be4 {[%clk 0:02:47]} 19. Bc4 {[%clk 0:01:58]}  Qd6 {[%clk 0:02:46]} 20. Qb5 {[%clk 0:01:18]}  Nxd4 {[%clk 0:02:33]} 21. Qh5 {[%clk 0:01:01]}  Re5 {[%clk 0:02:16]} 22. Qxf7+ {[%clk 0:00:42]}  Kh8 {[%clk 0:02:16]} 23. Bf4 {[%clk 0:00:30]}  Qe7 {[%clk 0:02:07]} 24. Bxe5 {[%clk 0:00:28]}  Qxe5 {[%clk 0:02:08]} 25. Rfe1 {[%clk 0:00:16]}  Nf3+ {[%clk 0:01:52]} 26. Kf1 {[%clk 0:00:09]}  Nxh4 {[%clk 0:01:39]} 27. Bd3 {[%clk 0:00:03]}  Bg2+ {[%clk 0:01:19]} 28. Kg1 {[%clk 0:00:02]}  Nf3+ {[%clk 0:01:18]} 29. Qxf3 {[%clk 0:00:02]}  Bxf3 {[%clk 0:01:15]} 30. Rxe5 {[%clk 0:00:00]}  Bxd1 {[%clk 0:01:16]} 0-1


[Site "https://www.chess.com"]

[Event "Titled Tuesday Blitz August 1 Late 2023"]
[White "Rosen, Eric"]
[Black "Bueno, Alfeu Junior Varela"]
[WhiteFideId "2032562"]
[BlackFideId "2108879"]
[WhiteElo "2670"]
[BlackElo "2375"]
[Result "1-0"]
[Round "2"]
[TimeControl "180+1"]
[Date "2023.08.01"]
[WhiteClock "0:00:05"]
[BlackClock "0:00:05"]
[Board "111"]

1. d4 {[%clk 0:03:00]}  e6 {[%clk 0:02:59]} 2. Bf4 {[%clk 0:03:01]}  f5 {[%clk 0:03:00]} 3. g4 {[%clk 0:03:00]}  fxg4 {[%clk 0:03:00]} 4. h3 {[%clk 0:03:00]}  Qh4 {[%clk 0:02:56]} 5. Bg2 {[%clk 0:02:52]}  Bd6 {[%clk 0:02:56]} 6. Bxd6 {[%clk 0:02:39]}  cxd6 {[%clk 0:02:57]} 7. Nc3 {[%clk 0:02:39]}  g3 {[%clk 0:02:56]} 8. Nf3 {[%clk 0:02:34]}  gxf2+ {[%clk 0:02:56]} 9. Kf1 {[%clk 0:02:35]}  Qh5 {[%clk 0:02:50]} 10. Ne4 {[%clk 0:02:29]}  Ke7 {[%clk 0:02:41]} 11. Kxf2 {[%clk 0:02:23]}  Nf6 {[%clk 0:02:41]} 12. Ng3 {[%clk 0:02:23]}  Qg6 {[%clk 0:02:33]} 13. d5 {[%clk 0:01:48]}  Rf8 {[%clk 0:02:30]} 14. c4 {[%clk 0:01:38]}  Na6 {[%clk 0:02:20]} 15. Re1 {[%clk 0:01:30]}  Nc5 {[%clk 0:02:20]} 16. Qd4 {[%clk 0:01:22]}  e5 {[%clk 0:02:12]} 17. Qh4 {[%clk 0:01:22]}  Ne4+ {[%clk 0:02:02]} 18. Nxe4 {[%clk 0:01:20]}  Qxe4 {[%clk 0:02:03]} 19. Qg5 {[%clk 0:01:16]}  Kf7 {[%clk 0:01:00]} 20. c5 {[%clk 0:01:01]}  Qb4 {[%clk 0:00:46]} 21. Qe3 {[%clk 0:00:54]}  e4 {[%clk 0:00:38]} 22. Ng5+ {[%clk 0:00:46]}  Kg8 {[%clk 0:00:32]} 23. Kg3 {[%clk 0:00:40]}  Qxc5 {[%clk 0:00:25]} 24. Qxc5 {[%clk 0:00:40]}  dxc5 {[%clk 0:00:26]} 25. Bxe4 {[%clk 0:00:40]}  Nxe4+ {[%clk 0:00:24]} 26. Nxe4 {[%clk 0:00:41]}  b6 {[%clk 0:00:24]} 27. Nd6 {[%clk 0:00:27]}  Ba6 {[%clk 0:00:24]} 28. e4 {[%clk 0:00:27]}  Rf6 {[%clk 0:00:22]} 29. e5 {[%clk 0:00:27]}  Rg6+ {[%clk 0:00:22]} 30. Kh2 {[%clk 0:00:22]}  Rf8 {[%clk 0:00:19]} 31. Ne4 {[%clk 0:00:21]}  Bb7 {[%clk 0:00:18]} 32. Rad1 {[%clk 0:00:21]}  Re8 {[%clk 0:00:18]} 33. Nd6 {[%clk 0:00:19]}  Rb8 {[%clk 0:00:16]} 34. h4 {[%clk 0:00:15]}  h5 {[%clk 0:00:15]} 35. Re3 {[%clk 0:00:12]}  Rg4 {[%clk 0:00:14]} 36. Kh3 {[%clk 0:00:12]}  Rd4 {[%clk 0:00:14]} 37. Red3 {[%clk 0:00:11]}  Bxd5 {[%clk 0:00:12]} 38. Rxd4 {[%clk 0:00:12]}  cxd4 {[%clk 0:00:13]} 39. b3 {[%clk 0:00:10]}  Be6+ {[%clk 0:00:09]} 40. Kg3 {[%clk 0:00:10]}  Rf8 {[%clk 0:00:06]} 41. Rxd4 {[%clk 0:00:10]}  Rf1 {[%clk 0:00:06]} 42. Ra4 {[%clk 0:00:09]}  a5 {[%clk 0:00:06]} 43. b4 {[%clk 0:00:10]}  axb4 {[%clk 0:00:04]} 44. Rxb4 {[%clk 0:00:10]}  Ra1 {[%clk 0:00:04]} 45. a4 {[%clk 0:00:08]}  Ra3+ {[%clk 0:00:03]} 46. Kf2 {[%clk 0:00:06]}  Rh3 {[%clk 0:00:01]} 47. Kg2 {[%clk 0:00:05]}  Ra3 {[%clk 0:00:01]} 48. Ne4 {[%clk 0:00:05]}  Kh7 {[%clk 0:00:02]} 49. Ng5+ {[%clk 0:00:05]}  Kg6 {[%clk 0:00:02]} 50. Kf2 {[%clk 0:00:04]}  Kf5 {[%clk 0:00:03]} 51. Nf3 {[%clk 0:00:04]}  Kg6 {[%clk 0:00:01]} 52. Rxb6 {[%clk 0:00:03]}  Rxa4 {[%clk 0:00:01]} 53. Kg3 {[%clk 0:00:03]}  Ra3 {[%clk 0:00:01]} 54. Kf4 {[%clk 0:00:03]}  Kh7 {[%clk 0:00:01]} 55. Ng5+ {[%clk 0:00:03]}  Kg6 {[%clk 0:00:01]} 56. Nxe6 {[%clk 0:00:03]}  dxe6 {[%clk 0:00:02]} 57. Rxe6+ {[%clk 0:00:04]}  Kf7 {[%clk 0:00:03]} 58. Rb6 {[%clk 0:00:04]}  Ra4+ {[%clk 0:00:04]} 59. Kg5 {[%clk 0:00:04]}  Ra5 {[%clk 0:00:02]} 60. Kf5 {[%clk 0:00:02]}  Rc5 {[%clk 0:00:02]} 61. Rb7+ {[%clk 0:00:02]}  Kg8 {[%clk 0:00:02]} 62. Ke6 {[%clk 0:00:03]}  Rc4 {[%clk 0:00:03]} 63. Rb8+ {[%clk 0:00:03]}  Kh7 {[%clk 0:00:02]} 64. Kf7 {[%clk 0:00:03]}  Rxh4 {[%clk 0:00:02]} 65. e6 {[%clk 0:00:04]}  Rf4+ {[%clk 0:00:03]} 66. Ke8 {[%clk 0:00:03]}  h4 {[%clk 0:00:03]} 67. Rb5 {[%clk 0:00:03]}  Kg6 {[%clk 0:00:03]} 68. e7 {[%clk 0:00:03]}  Re4 {[%clk 0:00:02]} 69. Kd7 {[%clk 0:00:02]}  Rd4+ {[%clk 0:00:02]} 70. Ke6 {[%clk 0:00:02]}  Re4+ {[%clk 0:00:02]} 71. Kd7 {[%clk 0:00:02]}  Rd4+ {[%clk 0:00:02]} 72. Kc7 {[%clk 0:00:02]}  Re4 {[%clk 0:00:02]} 73. Kd6 {[%clk 0:00:03]}  Rd4+ {[%clk 0:00:02]} 74. Ke5 {[%clk 0:00:01]}  Rd3 {[%clk 0:00:01]} 75. e8=Q+ {[%clk 0:00:02]}  Kg5 {[%clk 0:00:01]} 76. Qe7+ {[%clk 0:00:02]}  Kg4 {[%clk 0:00:02]} 77. Qb7 {[%clk 0:00:02]}  Kg3 {[%clk 0:00:02]} 78. Rb3 {[%clk 0:00:02]}  Rxb3 {[%clk 0:00:02]} 79. Qxb3+ {[%clk 0:00:03]}  Kg2 {[%clk 0:00:02]} 80. Qc2+ {[%clk 0:00:04]}  Kg3 {[%clk 0:00:02]} 81. Ke4 {[%clk 0:00:04]}  h3 {[%clk 0:00:03]} 82. Qd3+ {[%clk 0:00:04]}  Kg2 {[%clk 0:00:04]} 83. Qe2+ {[%clk 0:00:04]}  Kg1 {[%clk 0:00:04]} 84. Kf3 {[%clk 0:00:04]}  h2 {[%clk 0:00:05]} 85. Qf2+ {[%clk 0:00:05]}  Kh1 {[%clk 0:00:05]} 86. Qf1# {[%clk 0:00:05]} 1-0


[Site "https://www.chess.com"]

[Event "Titled Tuesday Blitz August 1 Late 2023"]
[White "Bernat, David"]
[Black "Dimitrov, Atanas"]
[WhiteFideId "2099225"]
[BlackFideId "2901315"]
[WhiteElo "2375"]
[BlackElo "2669"]
[Result "0-1"]
[Round "2"]
[TimeControl "180+1"]
[Date "2023.08.01"]
[WhiteClock "0:00:20"]
[BlackClock "0:02:41"]
[Board "112"]

1. c4 {[%clk 0:00:39]}  e5 {[%clk 0:02:58]} 2. Nc3 {[%clk 0:00:39]}  g6 {[%clk 0:02:56]} 3. g3 {[%clk 0:00:40]}  Bg7 {[%clk 0:02:57]} 4. Bg2 {[%clk 0:00:40]}  Ne7 {[%clk 0:02:57]} 5. d3 {[%clk 0:00:41]}  O-O {[%clk 0:02:58]} 6. e4 {[%clk 0:00:42]}  Nbc6 {[%clk 0:02:58]} 7. Nge2 {[%clk 0:00:42]}  d6 {[%clk 0:02:59]} 8. O-O {[%clk 0:00:43]}  h6 {[%clk 0:02:57]} 9. f3 {[%clk 0:00:43]}  Be6 {[%clk 0:02:57]} 10. Be3 {[%clk 0:00:44]}  f5 {[%clk 0:02:57]} 11. Qd2 {[%clk 0:00:45]}  Kh7 {[%clk 0:02:58]} 12. b3 {[%clk 0:00:43]}  Qd7 {[%clk 0:02:57]} 13. Rad1 {[%clk 0:00:41]}  Nd8 {[%clk 0:02:54]} 14. d4 {[%clk 0:00:42]}  fxe4 {[%clk 0:02:50]} 15. d5 {[%clk 0:00:35]}  Bh3 {[%clk 0:02:49]} 16. Nxe4 {[%clk 0:00:32]}  Bxg2 {[%clk 0:02:48]} 17. Kxg2 {[%clk 0:00:33]}  Nf5 {[%clk 0:02:47]} 18. Bg1 {[%clk 0:00:32]}  Nf7 {[%clk 0:02:46]} 19. N2c3 {[%clk 0:00:26]}  h5 {[%clk 0:02:41]} 20. Ng5+ {[%clk 0:00:24]}  Nxg5 {[%clk 0:02:41]} 21. Qxg5 {[%clk 0:00:20]}  Bh6 {[%clk 0:02:41]} 0-1


[Site "https://www.chess.com"]

[Event "Titled Tuesday Blitz August 1 Late 2023"]
[White "Ardelean, George-Catalin"]
[Black "Kanyamarala, Trisha"]
[WhiteFideId "1207091"]
[BlackFideId "45004722"]
[WhiteElo "2658"]
[BlackElo "2370"]
[Result "1-0"]
[Round "2"]
[TimeControl "180+1"]
[Date "2023.08.01"]
[WhiteClock "0:01:48"]
[BlackClock "0:02:01"]
[Board "114"]

1. d4 {[%clk 0:03:00]}  d5 {[%clk 0:02:53]} 2. Bf4 {[%clk 0:02:59]}  Nf6 {[%clk 0:02:52]} 3. e3 {[%clk 0:02:59]}  e6 {[%clk 0:02:51]} 4. Qf3 {[%clk 0:02:58]}  c5 {[%clk 0:02:51]} 5. Nc3 {[%clk 0:02:58]}  a6 {[%clk 0:02:50]} 6. g4 {[%clk 0:02:57]}  Nc6 {[%clk 0:02:48]} 7. O-O-O {[%clk 0:02:55]}  c4 {[%clk 0:02:41]} 8. g5 {[%clk 0:02:55]}  Nd7 {[%clk 0:02:39]} 9. e4 {[%clk 0:02:54]}  Nb6 {[%clk 0:02:34]} 10. Qg3 {[%clk 0:02:37]}  Be7 {[%clk 0:02:22]} 11. Bc7 {[%clk 0:02:31]}  Bxg5+ {[%clk 0:02:21]} 12. Kb1 {[%clk 0:02:31]}  Bh4 {[%clk 0:02:20]} 13. Bxd8 {[%clk 0:02:16]}  Bxg3 {[%clk 0:02:19]} 14. Bxb6 {[%clk 0:02:17]}  Bxf2 {[%clk 0:02:18]} 15. exd5 {[%clk 0:02:16]}  exd5 {[%clk 0:02:17]} 16. Nxd5 {[%clk 0:02:17]}  O-O {[%clk 0:02:18]} 17. Bxc4 {[%clk 0:02:15]}  Bg4 {[%clk 0:02:16]} 18. Be2 {[%clk 0:02:04]}  Be6 {[%clk 0:02:15]} 19. Nc7 {[%clk 0:02:02]}  Rac8 {[%clk 0:02:13]} 20. Nxe6 {[%clk 0:02:01]}  fxe6 {[%clk 0:02:13]} 21. Nf3 {[%clk 0:02:00]}  Nb4 {[%clk 0:02:11]} 22. Bc5 {[%clk 0:01:55]}  Nd5 {[%clk 0:02:06]} 23. Bxf8 {[%clk 0:01:54]}  Rxf8 {[%clk 0:02:07]} 24. Ne5 {[%clk 0:01:50]}  Ne3 {[%clk 0:02:01]} 25. Rd3 {[%clk 0:01:48]} 1-0


[Site "https://www.chess.com"]

[Event "Titled Tuesday Blitz August 1 Late 2023"]
[White "Mike24147"]
[Black "Manukyan, Sargis V."]
[BlackFideId "13303465"]
[WhiteElo "2362"]
[BlackElo "2602"]
[Result "1-0"]
[Round "2"]
[TimeControl "180+1"]
[Date "2023.08.01"]
[WhiteClock "0:01:01"]
[BlackClock "0:00:00"]
[Board "117"]

1. c4 {[%clk 0:02:59]}  c5 {[%clk 0:02:59]} 2. g3 {[%clk 0:02:59]}  Nc6 {[%clk 0:02:58]} 3. Bg2 {[%clk 0:02:59]}  g6 {[%clk 0:02:59]} 4. Nc3 {[%clk 0:02:59]}  Bg7 {[%clk 0:02:59]} 5. d3 {[%clk 0:02:59]}  Nf6 {[%clk 0:02:57]} 6. e4 {[%clk 0:02:58]}  O-O {[%clk 0:02:50]} 7. Nge2 {[%clk 0:02:58]}  a6 {[%clk 0:02:49]} 8. O-O {[%clk 0:02:57]}  Rb8 {[%clk 0:02:48]} 9. a4 {[%clk 0:02:58]}  Ne8 {[%clk 0:02:45]} 10. Be3 {[%clk 0:02:56]}  d6 {[%clk 0:02:42]} 11. d4 {[%clk 0:02:53]}  b6 {[%clk 0:02:30]} 12. Qd2 {[%clk 0:02:43]}  Nc7 {[%clk 0:02:26]} 13. h3 {[%clk 0:02:32]}  cxd4 {[%clk 0:02:04]} 14. Nxd4 {[%clk 0:02:32]}  Nxd4 {[%clk 0:01:59]} 15. Bxd4 {[%clk 0:02:32]}  Bxd4 {[%clk 0:01:58]} 16. Qxd4 {[%clk 0:02:33]}  b5 {[%clk 0:01:58]} 17. cxb5 {[%clk 0:02:31]}  axb5 {[%clk 0:01:57]} 18. a5 {[%clk 0:02:29]}  b4 {[%clk 0:01:56]} 19. Nd5 {[%clk 0:02:20]}  Ba6 {[%clk 0:01:45]} 20. Rfc1 {[%clk 0:02:16]}  Ne6 {[%clk 0:01:41]} 21. Qd2 {[%clk 0:01:51]}  Nc5 {[%clk 0:01:38]} 22. Qe3 {[%clk 0:01:24]}  Rb5 {[%clk 0:00:46]} 23. Nb6 {[%clk 0:01:20]}  b3 {[%clk 0:00:24]} 24. Bf1 {[%clk 0:01:12]}  Rb4 {[%clk 0:00:21]} 25. Rxc5 {[%clk 0:01:06]}  Bxf1 {[%clk 0:00:19]} 26. Rc8 {[%clk 0:01:05]}  Bxh3 {[%clk 0:00:09]} 27. Rxd8 {[%clk 0:01:04]}  Rxd8 {[%clk 0:00:10]} 28. a6 {[%clk 0:01:02]}  Rxb6 {[%clk 0:00:04]} 29. Qxb6 {[%clk 0:01:02]}  Rc8 {[%clk 0:00:00]} 30. a7 {[%clk 0:01:01]} 1-0


[Site "https://www.chess.com"]

[Event "Titled Tuesday Blitz August 1 Late 2023"]
[White "Jarmula, Lukasz"]
[Black "Rego, Pedro Filipe"]
[WhiteFideId "1160664"]
[BlackFideId "1904310"]
[WhiteElo "2601"]
[BlackElo "2362"]
[Result "1-0"]
[Round "2"]
[TimeControl "180+1"]
[Date "2023.08.01"]
[WhiteClock "0:01:10"]
[BlackClock "0:00:56"]
[Board "118"]

1. b3 {[%clk 0:02:31]}  Nf6 {[%clk 0:02:58]} 2. Bb2 {[%clk 0:02:31]}  d5 {[%clk 0:02:58]} 3. g3 {[%clk 0:02:29]}  e6 {[%clk 0:02:52]} 4. Bg2 {[%clk 0:02:29]}  c5 {[%clk 0:02:53]} 5. Nf3 {[%clk 0:02:28]}  Nc6 {[%clk 0:02:53]} 6. O-O {[%clk 0:02:28]}  Be7 {[%clk 0:02:51]} 7. d4 {[%clk 0:02:28]}  cxd4 {[%clk 0:02:49]} 8. Nxd4 {[%clk 0:02:28]}  O-O {[%clk 0:02:50]} 9. c4 {[%clk 0:02:27]}  Nxd4 {[%clk 0:02:46]} 10. Qxd4 {[%clk 0:02:28]}  dxc4 {[%clk 0:02:47]} 11. Qxc4 {[%clk 0:02:27]}  Qb6 {[%clk 0:02:38]} 12. Bd4 {[%clk 0:02:23]}  Qa5 {[%clk 0:02:32]} 13. Bc3 {[%clk 0:02:13]}  Qb6 {[%clk 0:02:32]} 14. Bd4 {[%clk 0:02:11]}  Qa5 {[%clk 0:02:32]} 15. Nc3 {[%clk 0:02:10]}  Bd7 {[%clk 0:02:22]} 16. Bxb7 {[%clk 0:01:58]}  Rab8 {[%clk 0:02:22]} 17. Qa6 {[%clk 0:01:58]}  Qb4 {[%clk 0:02:12]} 18. Bxa7 {[%clk 0:01:32]}  Rxb7 {[%clk 0:01:59]} 19. a3 {[%clk 0:01:32]}  Qxb3 {[%clk 0:01:25]} 20. Rab1 {[%clk 0:01:30]}  Rxa7 {[%clk 0:01:16]} 21. Qxa7 {[%clk 0:01:24]}  Qxc3 {[%clk 0:01:16]} 22. Rfd1 {[%clk 0:01:24]}  Rd8 {[%clk 0:01:07]} 23. Rbc1 {[%clk 0:01:18]}  Qe5 {[%clk 0:01:03]} 24. Qc7 {[%clk 0:01:12]}  Nd5 {[%clk 0:00:56]} 25. Qxe5 {[%clk 0:01:10]} 1-0


[Site "https://www.chess.com"]

[Event "Titled Tuesday Blitz August 1 Late 2023"]
[White "brm72"]
[Black "Ferro, Mario"]
[BlackFideId "810290"]
[WhiteElo "2600"]
[BlackElo "2361"]
[Result "1-0"]
[Round "2"]
[TimeControl "180+1"]
[Date "2023.08.01"]
[WhiteClock "0:01:07"]
[BlackClock "0:00:36"]
[Board "119"]

1. e4 {[%clk 0:03:00]}  c5 {[%clk 0:02:59]} 2. Nf3 {[%clk 0:02:58]}  d6 {[%clk 0:02:59]} 3. d4 {[%clk 0:02:58]}  cxd4 {[%clk 0:03:00]} 4. Nxd4 {[%clk 0:02:59]}  Nf6 {[%clk 0:03:00]} 5. Nc3 {[%clk 0:02:59]}  a6 {[%clk 0:03:00]} 6. f3 {[%clk 0:03:00]}  e5 {[%clk 0:03:00]} 7. Nb3 {[%clk 0:03:00]}  Be6 {[%clk 0:03:01]} 8. Be3 {[%clk 0:03:01]}  Nbd7 {[%clk 0:02:59]} 9. Qd2 {[%clk 0:03:01]}  b5 {[%clk 0:03:00]} 10. O-O-O {[%clk 0:03:00]}  Nb6 {[%clk 0:02:57]} 11. Qf2 {[%clk 0:02:54]}  Nc4 {[%clk 0:02:56]} 12. Bxc4 {[%clk 0:02:51]}  bxc4 {[%clk 0:02:57]} 13. Bb6 {[%clk 0:02:51]}  Qc8 {[%clk 0:02:55]} 14. Na5 {[%clk 0:02:50]}  Be7 {[%clk 0:02:54]} 15. Nd5 {[%clk 0:02:48]}  Bxd5 {[%clk 0:02:49]} 16. exd5 {[%clk 0:02:49]}  O-O {[%clk 0:02:49]} 17. Nc6 {[%clk 0:02:37]}  Qd7 {[%clk 0:02:46]} 18. Nxe7+ {[%clk 0:02:08]}  Qxe7 {[%clk 0:02:46]} 19. g4 {[%clk 0:02:07]}  Qb7 {[%clk 0:02:41]} 20. Ba5 {[%clk 0:01:56]}  Nxd5 {[%clk 0:02:37]} 21. Qd2 {[%clk 0:01:51]}  c3 {[%clk 0:02:25]} 22. Bxc3 {[%clk 0:01:50]}  Nxc3 {[%clk 0:02:24]} 23. Qxc3 {[%clk 0:01:51]}  Rfc8 {[%clk 0:02:22]} 24. Qd3 {[%clk 0:01:49]}  Rab8 {[%clk 0:02:18]} 25. b3 {[%clk 0:01:48]}  Qb4 {[%clk 0:02:04]} 26. Kb2 {[%clk 0:01:46]}  Rc6 {[%clk 0:01:58]} 27. a3 {[%clk 0:01:42]}  Qc5 {[%clk 0:01:49]} 28. h4 {[%clk 0:01:39]}  a5 {[%clk 0:01:48]} 29. g5 {[%clk 0:01:39]}  Rbc8 {[%clk 0:01:36]} 30. Rh2 {[%clk 0:01:32]}  d5 {[%clk 0:00:56]} 31. Qxd5 {[%clk 0:01:14]}  Qc3+ {[%clk 0:00:55]} 32. Kb1 {[%clk 0:01:14]}  g6 {[%clk 0:00:51]} 33. h5 {[%clk 0:01:11]}  Rc5 {[%clk 0:00:36]} 34. Qd8+ {[%clk 0:01:07]} 1-0


[Site "https://www.chess.com"]